fUSD/lending_fUSD_20251204
["ID","MTS","AMOUNT","RATE_DAILY","PERIOD"]
[396231663,1764850244516,-150.0,0.00017137,2]
[396231664,1764850244525,-500.0,0.00017137,2]
[396231665,1764850244535,-150.0,0.00017137,2]
[396231666,1764850244544,-150.0,0.00017137,2]
[396231667,1764850244553,-500.0,0.00017137,2]
[396231668,1764850244562,-612.94335419,0.00017137,2]
[396231669,1764850244572,-153.64633534,0.00017137,2]
[396231670,1764850244581,-154.34814391,0.00017137,2]
[396231671,1764850244590,-150.31772105,0.00017137,2]
[396231672,1764850244599,-150.0,0.00017137,2]
[396231674,1764850244608,-150.0,0.00017137,2]
[396231675,1764850244618,-200.0,0.0001717,2]
[396231676,1764850244629,-200.0,0.0001717,2]
[396231677,1764850244638,-200.0,0.0001717,2]
[396231678,1764850244648,-1287.56,0.000172,2]
[396231679,1764850244658,-617.40005154,0.00017244,2]
[396231680,1764850244667,-2340.0,0.00017244,2]
[396231681,1764850244677,-151.0,0.00017244,2]
[396231682,1764850244686,-151.0,0.00017244,2]
[396231683,1764850244696,-189.51838586,0.00017261,2]
[396231684,1764850244720,-150.0,0.00017264,2]
[396231685,1764850244748,-500.0,0.00017264,2]
[396231686,1764850244758,-500.0,0.00017264,2]
[396231687,1764850244768,-501.0,0.00017264,2]
[396231688,1764850244778,-500.0,0.00017264,2]
[396231689,1764850244788,-152.76480098,0.00017264,2]
[396231690,1764850244797,-500.0,0.00017264,2]
[396231691,1764850244807,-500.0,0.00017264,2]
[396231692,1764850244817,-500.0,0.00017264,2]
[396231693,1764850244827,-500.0,0.00017264,2]
[396231694,1764850244836,-271.08275124,0.00017264,2]
[396231695,1764850244846,-500.0,0.00017264,2]
[396231696,1764850244856,-500.0,0.00017264,2]
[396231697,1764850244866,-500.0,0.00017264,2]
[396231698,1764850244876,-500.0,0.00017264,2]
[396231699,1764850244889,-500.0,0.00017264,2]
[396231700,1764850244910,-282.84254026,0.00017264,2]
[396231701,1764850244923,-1773.0,0.00017264,2]
[396231702,1764850244932,-284.66758236,0.00017264,2]
[396231703,1764850244942,-500.0,0.00017264,2]
[396231704,1764850244951,-500.0,0.00017264,2]
[396231705,1764850244960,-500.0,0.00017264,2]
[396231706,1764850244970,-500.0,0.00017264,2]
[396231707,1764850244980,-500.0,0.00017274,2]
[396231708,1764850244989,-150.0,0.00017274,2]
[396231709,1764850244998,-362.34759321,0.00017274,2]
[396231710,1764850245008,-150.0,0.00017274,2]
[396231711,1764850245017,-282.96061831,0.00017274,2]
[396231712,1764850245026,-430.93871402,0.00017274,2]
[396231713,1764850245035,-155.20761667,0.00017274,2]
[396231714,1764850245045,-150.0,0.00017274,2]
[396231715,1764850245054,-200.0,0.00017342,2]
[396231716,1764850245063,-200.0,0.00017342,2]
[396231717,1764850245072,-300.0,0.0001736,2]
[396231718,1764850245082,-77854.35597715,0.00017361,2]
[396231719,1764850245091,-213.55349695,0.00017401,2]
[396231720,1764850245101,-500.0,0.00017401,2]
[396231721,1764850245111,-500.0,0.00017401,2]
[396231722,1764850245119,-501.0,0.00017401,2]
[396231723,1764850245128,-500.0,0.00017401,2]
[396231724,1764850245138,-500.0,0.00017401,2]
[396231725,1764850245147,-500.0,0.00017401,2]
[396231726,1764850245156,-500.0,0.00017401,2]
[396231727,1764850245165,-453.80055729,0.00017401,2]
[396231728,1764850245174,-500.0,0.00017401,2]
[396231729,1764850245183,-500.0,0.00017401,2]
[396231730,1764850245192,-500.0,0.00017401,2]
[396231731,1764850245201,-1773.0,0.00017401,2]
[396231732,1764850245211,-500.0,0.00017401,2]
[396231733,1764850245220,-500.0,0.00017401,2]
[396231734,1764850245230,-500.0,0.00017401,2]
[396231735,1764850245239,-500.0,0.00017401,2]
[396231736,1764850245249,-500.0,0.00017411,2]
[396231737,1764850245259,-212.66437805,0.00017411,2]
[396231738,1764850245268,-153.46486133,0.00017411,2]
[396231739,1764850245278,-151.74937325,0.00017411,2]
[396231740,1764850245287,-1287.56,0.00017474,2]
[396231741,1764850245296,-167.56,0.00017511,2]
[396231742,1764850245305,-200.0,0.00017515,2]
[396231743,1764850245314,-200.0,0.00017515,2]
[396231744,1764850245323,-322.6107,0.00017517,2]
[396231745,1764850245332,-287.61899177,0.00017517,2]
[396231746,1764850245341,-311.1,0.00017517,2]
[396231747,1764850245351,-445.49167691,0.00017538,2]
[396231748,1764850245360,-500.0,0.00017538,2]
[396231749,1764850245370,-501.0,0.00017538,2]
[396231750,1764850245380,-500.0,0.00017538,2]
[396231751,1764850245389,-500.0,0.00017538,2]
[396231752,1764850245399,-500.0,0.00017538,2]
[396231753,1764850245408,-500.0,0.00017538,2]
[396231754,1764850245418,-500.0,0.00017538,2]
[396231755,1764850245427,-500.0,0.00017538,2]
[396231756,1764850245436,-500.0,0.00017538,2]
[396231757,1764850245446,-1773.0,0.00017538,2]
[396231758,1764850245455,-297.80864712,0.00017538,2]
[396231759,1764850245464,-500.0,0.00017538,2]
[396231760,1764850245473,-366.23798276,0.00017538,2]
[396231761,1764850245482,-500.0,0.00017538,2]
[396231762,1764850245491,-510.31429567,0.00017548,2]
[396231763,1764850245500,-12778.249773,0.00017598,2]
[396231764,1764850245509,-6826.7251186,0.00017598,2]
[396231765,1764850245518,-166.66,0.00017636,2]
[396231766,1764850245528,-500.0,0.00017675,2]
[396231767,1764850245538,-501.0,0.00017675,2]
[396231768,1764850245547,-500.0,0.00017675,2]
[396231769,1764850245557,-500.0,0.00017675,2]
[396231770,1764850245567,-500.0,0.00017675,2]
[396231771,1764850245576,-500.0,0.00017675,2]
[396231772,1764850245585,-500.0,0.00017675,2]
[396231773,1764850245594,-500.0,0.00017675,2]
[396231774,1764850245607,-1773.0,0.00017675,2]
[396231775,1764850245617,-500.0,0.00017675,2]
[396231776,1764850245627,-500.0,0.00017675,2]
[396231777,1764850245636,-200.0,0.0001769,2]
[396231778,1764850245646,-200.0,0.0001769,2]
[396231779,1764850245656,-5524.0,0.000177,5]
[396231780,1764850245666,-2726.0,0.00017742,2]
[396231781,1764850245676,-1287.56,0.00017748,2]
[396231782,1764850245686,-640.24385345,0.00017792,2]
[396231783,1764850245696,-2340.0,0.00017792,2]
[396231784,1764850245706,-151.0,0.00017792,2]
[396231785,1764850245716,-301.67163023,0.00017792,2]
[396231786,1764850245729,-1000.0,0.000178,2]
[396231787,1764850245739,-150.0,0.00017808,2]
[396231788,1764850245749,-500.0,0.00017812,2]
[396231789,1764850245759,-501.0,0.00017812,2]
[396231790,1764850245769,-500.0,0.00017812,2]
[396231791,1764850245779,-500.0,0.00017812,2]
[396231792,1764850245923,-500.0,0.00017812,2]
[396231793,1764850245951,-500.0,0.00017812,2]
[396231794,1764850245961,-270.52785935,0.00017812,2]
[396231795,1764850245971,-500.0,0.00017812,2]
[396231796,1764850245981,-500.0,0.00017812,2]
[396231797,1764850245991,-1773.0,0.00017812,2]
[396231798,1764850246000,-500.0,0.00017812,2]
[396231799,1764850246010,-500.0,0.00017812,2]
[396231800,1764850246020,-151.0,0.00017833,2]
[396231801,1764850246029,-151.0,0.00017833,2]
[396231802,1764850246040,-621.64,0.0001784,2]
[396231803,1764850246050,-275.52043557,0.00017853,2]
[396231804,1764850246059,-2620.0,0.00017913,2]
[396231805,1764850246068,-2620.0,0.00017928,2]
[396231806,1764850246077,-150.0,0.00017945,2]
[396231807,1764850246087,-500.0,0.00017949,2]
[396231808,1764850246096,-501.0,0.00017949,2]
[396231809,1764850246106,-472.75252993,0.00017949,2]
[396231810,1764850246115,-500.0,0.00017949,2]
[396231811,1764850246124,-500.0,0.00017949,2]
[396231812,1764850246134,-500.0,0.00017949,2]
[396231813,1764850246144,-500.0,0.00017949,2]
[396231814,1764850246153,-500.0,0.00017949,2]
[396231815,1764850246163,-1773.0,0.00017949,2]
[396231816,1764850246172,-500.0,0.00017949,2]
[396231817,1764850246182,-500.0,0.00017949,2]
[396231819,1764850246191,-152.0,0.00017999,2]
[396231820,1764850246201,-200.0,0.00017999,2]
[396231821,1764850246210,-150.118,0.00017999,2]
[396231822,1764850246222,-150.145,0.00017999,2]
[396231823,1764850246232,-162.895,0.00017999,2]
[396231824,1764850246241,-150.0,0.00017999,2]
[396231825,1764850246250,-150.0,0.00017999,2]
[396231826,1764850246259,-613.724,0.00017999,2]
[396231827,1764850246268,-3444.0,0.00017999,2]
[396231828,1764850246277,-1322.0,0.00017999,2]
[396231829,1764850246287,-1259.0,0.00017999,2]
[396231830,1764850246296,-656.445,0.00017999,2]
[396231831,1764850246306,-1194.0,0.00017999,2]
[396231832,1764850246318,-909.0,0.00017999,2]
[396231833,1764850246328,-300.0,0.00017999,2]
[396231834,1764850246337,-1251.0,0.00017999,2]
[396231835,1764850246346,-202.21375982,0.00017999,2]
[396231836,1764850246355,-1251.0,0.00017999,2]
[396231837,1764850246364,-1251.0,0.00017999,2]
[396231838,1764850246373,-1251.0,0.00017999,2]
[396231839,1764850246382,-153.0,0.00017999,2]
[396231840,1764850246391,-1251.0,0.00017999,2]
[396231841,1764850246400,-1251.0,0.00017999,2]
[396231842,1764850246409,-1251.0,0.00017999,2]
[396231843,1764850246418,-1251.0,0.00017999,2]
[396231844,1764850246427,-1251.0,0.00017999,2]
[396231845,1764850246436,-1251.0,0.00017999,2]
[396231846,1764850246446,-1251.0,0.00017999,2]
[396231847,1764850246456,-157.0,0.00017999,2]
[396231848,1764850246466,-157.0,0.00017999,2]
[396231849,1764850246475,-157.0,0.00017999,2]
[396231850,1764850246485,-157.0,0.00017999,2]
[396231851,1764850246495,-157.0,0.00017999,2]
[396231852,1764850246505,-298.84474177,0.00017999,2]
[396231853,1764850246515,-152.0,0.00017999,2]
[396231854,1764850246524,-152.0,0.00017999,2]
[396231855,1764850246534,-156.48922587,0.00017999,2]
[396231856,1764850246544,-250.0,0.00018,2]
[396231857,1764850246554,-68957.98581717,0.00018,2]
[396231858,1764850246564,-887.27272926,0.00018,2]
[396231859,1764850246574,-1183.49453852,0.00018,2]
[396231860,1764850246583,-366.26941,0.00018,2]
[396231861,1764850246593,-1287.56,0.00018022,2]
[396231862,1764850246602,-2726.0,0.00018023,2]
[396231863,1764850246611,-2620.0,0.00018031,2]
[396231864,1764850246621,-150.0,0.00018082,2]
[396231865,1764850246630,-1000.0,0.00018082,2]
[396231866,1764850246640,-500.0,0.00018086,2]
[396231867,1764850246649,-501.0,0.00018086,2]
[396231868,1764850246659,-500.0,0.00018086,2]
[396231869,1764850246669,-343.97293839,0.00018086,2]
[396231870,1764850246679,-250.0,0.00018086,2]
[396231871,1764850246689,-500.0,0.00018086,2]
[396231872,1764850246699,-500.0,0.00018086,2]
[396231873,1764850246708,-1773.0,0.00018086,2]
[396231874,1764850246720,-500.0,0.00018086,2]
[396231875,1764850246730,-500.0,0.00018086,2]
[396231876,1764850246739,-1769.01601649,0.000181,2]
[396231877,1764850246748,-972.0,0.000181,2]
[396231878,1764850246759,-305.0,0.000181,2]
[396231879,1764850246768,-207.0,0.000181,2]
[396231880,1764850246778,-2620.0,0.00018114,2]
[396231881,1764850246788,-2620.0,0.00018141,2]
[396231882,1764850246799,-166.66,0.000182,2]
[396231883,1764850246809,-150.0,0.00018219,2]
[396231884,1764850246819,-500.0,0.00018223,2]
[396231885,1764850246829,-501.0,0.00018223,2]
[396231886,1764850246839,-500.0,0.00018223,2]
[396231887,1764850246849,-500.0,0.00018223,2]
[396231888,1764850246859,-1773.0,0.00018223,2]
[396231889,1764850246868,-250.0,0.00018223,2]
[396231890,1764850246879,-500.0,0.00018223,2]
[396231891,1764850246889,-2620.0,0.00018248,2]
[396231892,1764850246899,-636.68,0.0001825,2]
[396231893,1764850246908,-500.0,0.00018258,2]
[396231894,1764850246918,-500.0,0.00018259,2]
[396231895,1764850246928,-2726.0,0.00018277,2]
[396231896,1764850246938,-307.446999,0.00018295,2]
[396231897,1764850246948,-1287.56,0.00018296,2]
[396231898,1764850246957,-2726.0,0.00018338,2]
[396231899,1764850246967,-663.93287602,0.0001834,2]
[396231900,1764850246978,-2340.0,0.0001834,2]
[396231901,1764850246987,-151.0,0.0001834,2]
[396231902,1764850246997,-167.56,0.00018345,2]
[396231903,1764850247006,-2726.0,0.00018355,2]
[396231904,1764850247015,-150.0,0.00018356,2]
[396231905,1764850247024,-761.023688,0.00018356,2]
[396231906,1764850247034,-761.023688,0.00018356,2]
[396231907,1764850247043,-761.023688,0.00018356,2]
[396231908,1764850247052,-761.023688,0.00018356,2]
[396231909,1764850247062,-87966.54,0.00018356,2]
[396231910,1764850247071,-500.0,0.0001836,2]
[396231911,1764850247080,-501.0,0.0001836,2]
[396231912,1764850247093,-460.60034226,0.0001836,2]
[396231913,1764850247103,-573.0,0.0001836,2]
[396231914,1764850247112,-1773.0,0.0001836,2]
[396231915,1764850247122,-500.0,0.0001836,2]
[396231916,1764850247132,-2620.0,0.00018372,2]
[396231917,1764850247141,-150.17113883,0.00018373,2]
[396231918,1764850247151,-561.34,0.00018411,2]
[396231919,1764850247160,-2620.0,0.0001843,2]
[396231920,1764850247169,-2620.0,0.00018434,2]
[396231921,1764850247179,-2726.0,0.00018444,2]
[396231922,1764850247188,-2620.0,0.00018452,2]
[396231923,1764850247198,-157.75281607,0.00018458,2]
[396231924,1764850247211,-2620.0,0.00018484,2]
[396231925,1764850247227,-229.59889414,0.00018493,2]
[396231926,1764850247242,-500.0,0.00018497,2]
[396231927,1764850247253,-501.0,0.00018497,2]
[396231928,1764850247268,-1773.0,0.00018497,2]
[396231929,1764850247282,-500.0,0.00018497,2]
[396231930,1764850247296,-2726.0,0.00018537,2]
[396231931,1764850247311,-2620.0,0.00018566,2]
[396231932,1764850247323,-1287.65226699,0.0001857,2]
[396231933,1764850247336,-1000.0,0.00018576,2]
[396231934,1764850247347,-206.55,0.00018626,2]
[396231935,1764850247361,-500.0,0.00018634,2]
[396231936,1764850247374,-501.0,0.00018634,2]
[396231937,1764850247387,-1773.0,0.00018634,2]
[396231938,1764850247402,-295.08504534,0.00018634,2]
[396231939,1764850247416,-12778.249773,0.00018641,2]
[396231940,1764850247431,-6826.7251186,0.00018641,2]
[396231941,1764850247444,-10000.0,0.00018644,2]
[396231942,1764850247459,-287.77,0.00018664,2]
[396231943,1764850247473,-2726.0,0.00018666,2]
[396231944,1764850247487,-281.89052557,0.00018693,2]
[396231945,1764850247501,-2726.0,0.00018744,2]
[396231946,1764850247513,-1000.0,0.0001876,2]
[396231947,1764850247527,-166.66,0.00018763,2]
[396231948,1764850247543,-500.0,0.00018771,2]
[396231949,1764850247556,-501.0,0.00018771,2]
[396231950,1764850247569,-1773.0,0.00018771,2]
[396231951,1764850247580,-150.8,0.000188,2]
[396231952,1764850247592,-150.8,0.000188,2]
[396231953,1764850247606,-150.8,0.000188,2]
[396231954,1764850247620,-150.8,0.000188,2]
[396231955,1764850247631,-150.8,0.000188,2]
[396231956,1764850247642,-150.8,0.000188,2]
[396231957,1764850247655,-150.8,0.000188,2]
[396231958,1764850247670,-150.8,0.000188,2]
[396231959,1764850247681,-150.8,0.000188,2]
[396231960,1764850247693,-150.8,0.000188,2]
[396231961,1764850247705,-150.8,0.000188,2]
[396231962,1764850247720,-150.8,0.000188,2]
[396231963,1764850247731,-2726.0,0.00018811,2]
[396231964,1764850247744,-334.5472959,0.00018886,2]
[396231965,1764850247757,-298.26089446,0.00018886,2]
[396231966,1764850247769,-322.6107,0.00018886,2]
[396231967,1764850247781,-599.60298507,0.00018887,2]
[396231968,1764850247797,-151.0,0.00018887,2]
[396231969,1764850247815,-688.49839244,0.00018888,2]
[396231970,1764850247827,-2340.0,0.00018888,2]
[396231971,1764850247839,-151.0,0.00018888,2]
[396231972,1764850247851,-500.0,0.00018908,2]
[396231973,1764850247864,-501.0,0.00018908,2]
[396231974,1764850247876,-1773.0,0.00018908,2]
[396231975,1764850247889,-218.12979786,0.00018945,2]
[396231976,1764850247900,-278.4266047,0.00018956,2]
[396231977,1764850247913,-190.56,0.00018966,2]
[396231978,1764850247924,-408.4,0.00018972,2]
[396231979,1764850247939,-500.0,0.00019,4]
[396231980,1764850247951,-5139.59421298,0.00019,2]
[396231981,1764850247963,-532.00094569,0.00019,2]
[396231982,1764850247975,-1342.17501925,0.00019,2]
[396231983,1764850247987,-300.0,0.00019,2]
[396231984,1764850247998,-53712.63902002,0.00019,2]
[396231985,1764850248010,-500.0,0.00019045,2]
[396231986,1764850248022,-501.0,0.00019045,2]
[396231987,1764850248034,-1773.0,0.00019045,2]
[396231988,1764850248046,-2619.84735268,0.00019078,2]
[396231989,1764850248059,-220.75311086,0.00019082,2]
[396231990,1764850248072,-2425.55543465,0.00019084,2]
[396231991,1764850248083,-348.16,0.00019137,2]
[396231992,1764850248094,-1844.31955343,0.00019178,2]
[396231993,1764850248106,-676.04,0.00019178,2]
[396231994,1764850248118,-676.04,0.00019178,2]
[396231995,1764850248130,-676.04,0.00019178,2]
[396231996,1764850248141,-676.04,0.00019178,2]
[396231997,1764850248153,-676.04,0.00019178,2]
[396231998,1764850248165,-676.04,0.00019178,2]
[396231999,1764850248178,-676.04,0.00019178,2]
[396232000,1764850248191,-676.04,0.00019178,2]
[396232001,1764850248203,-676.04,0.00019178,2]
[396232002,1764850248215,-676.04,0.00019178,2]
[396232003,1764850248226,-676.04,0.00019178,2]
[396232004,1764850248238,-676.04,0.00019178,2]
[396232005,1764850248250,-676.04,0.00019178,2]
[396232006,1764850248262,-676.04,0.00019178,2]
[396232007,1764850248274,-676.04,0.00019178,2]
[396232008,1764850248286,-3008.5532171,0.00019178,2]
[396232009,1764850248297,-151.0,0.00019178,2]
[396232010,1764850248309,-20032.75,0.00019178,2]
[396232011,1764850248321,-153.721708,0.00019178,2]
[396232012,1764850248333,-151.0,0.00019178,2]
[396232013,1764850248345,-177.801643,0.00019178,2]
[396232014,1764850248357,-161.191286,0.00019178,2]
[396232015,1764850248368,-151.0,0.00019178,2]
[396232016,1764850248380,-151.0,0.00019178,2]
[396232017,1764850248393,-203.154721,0.00019178,2]
[396232018,1764850248404,-151.0,0.00019178,2]
[396232019,1764850248416,-151.0,0.00019178,2]
[396232020,1764850248428,-240.410375,0.00019178,2]
[396232021,1764850248440,-195.183644,0.00019178,2]
[396232022,1764850248452,-209.94573,0.00019178,2]
[396232023,1764850248463,-209.94573,0.00019178,2]
[396232024,1764850248476,-209.94573,0.00019178,2]
[396232025,1764850248487,-209.94573,0.00019178,2]
[396232026,1764850248499,-209.94573,0.00019178,2]
[396232027,1764850248511,-209.94573,0.00019178,2]
[396232028,1764850248523,-209.94573,0.00019178,2]
[396232029,1764850248538,-209.94573,0.00019178,2]
[396232030,1764850248549,-250.318239,0.00019178,2]
[396232031,1764850248562,-250.318239,0.00019178,2]
[396232032,1764850248573,-250.318239,0.00019178,2]
[396232033,1764850248584,-250.318239,0.00019178,2]
[396232034,1764850248596,-250.318239,0.00019178,2]
[396232035,1764850248608,-250.318239,0.00019178,2]
[396232036,1764850248620,-250.318239,0.00019178,2]
[396232037,1764850248632,-250.318239,0.00019178,2]
[396232038,1764850248643,-191.908777,0.00019178,2]
[396232039,1764850248656,-191.908777,0.00019178,2]
[396232040,1764850248667,-191.908777,0.00019178,2]
[396232041,1764850248678,-191.908777,0.00019178,2]
[396232042,1764850248690,-191.908777,0.00019178,2]
[396232043,1764850248703,-191.908777,0.00019178,2]
[396232044,1764850248715,-191.908777,0.00019178,2]
[396232045,1764850248732,-191.908777,0.00019178,2]
[396232046,1764850248745,-151.0,0.00019178,2]
[396232047,1764850248759,-151.0,0.00019178,2]
[396232048,1764850248773,-151.0,0.00019178,2]
[396232049,1764850248786,-182.053965,0.00019178,2]
[396232050,1764850248799,-151.0,0.00019178,2]
[396232051,1764850248809,-166.909594,0.00019178,2]
[396232052,1764850248819,-189.6464512,0.00019178,2]
[396232053,1764850248828,-151.0,0.00019178,2]
[396232054,1764850248838,-151.0,0.00019178,2]
[396232055,1764850249079,-151.0,0.00019178,2]
[396232056,1764850249100,-172.725489,0.00019178,2]
[396232057,1764850249111,-152.371997,0.00019178,2]
[396232058,1764850249120,-151.0,0.00019178,2]
[396232059,1764850249129,-156.511989,0.00019178,2]
[396232060,1764850249138,-151.0,0.00019178,2]
[396232061,1764850249148,-151.0,0.00019178,2]
[396232062,1764850249158,-151.0,0.00019178,2]
[396232063,1764850249168,-151.0,0.00019178,2]
[396232064,1764850249177,-151.0,0.00019178,2]
[396232065,1764850249186,-151.0,0.00019178,2]
[396232066,1764850249196,-151.0,0.00019178,2]
[396232067,1764850249205,-151.0,0.00019178,2]
[396232068,1764850249214,-151.0,0.00019178,2]
[396232069,1764850249224,-151.0,0.00019178,2]
[396232070,1764850249234,-151.0,0.00019178,2]
[396232071,1764850249243,-151.0,0.00019178,2]
[396232072,1764850249253,-151.0,0.00019178,2]
[396232073,1764850249264,-151.0,0.00019178,2]
[396232074,1764850249274,-151.000007,0.00019178,2]
[396232075,1764850249283,-998.632693,0.00019178,2]
[396232076,1764850249292,-151.0,0.00019178,2]
[396232077,1764850249301,-998.632693,0.00019178,2]
[396232078,1764850249310,-151.0,0.00019178,2]
[396232079,1764850249319,-998.632693,0.00019178,2]
[396232080,1764850249330,-998.632693,0.00019178,2]
[396232081,1764850249340,-151.0,0.00019178,2]
[396232082,1764850249349,-151.0,0.00019178,2]
[396232083,1764850249358,-998.632693,0.00019178,2]
[396232084,1764850249367,-998.632693,0.00019178,2]
[396232085,1764850249376,-998.632693,0.00019178,2]
[396232086,1764850249385,-171.305775,0.00019178,2]
[396232087,1764850249394,-998.632693,0.00019178,2]
[396232088,1764850249403,-151.0,0.00019178,2]
[396232089,1764850249413,-151.0,0.00019178,2]
[396232090,1764850249422,-151.0,0.00019178,2]
[396232091,1764850249431,-151.0,0.00019178,2]
[396232092,1764850249440,-6003.327466,0.00019178,2]
[396232093,1764850249450,-6003.327466,0.00019178,2]
[396232094,1764850249459,-151.0,0.00019178,2]
[396232095,1764850249468,-151.0,0.00019178,2]
[396232096,1764850249478,-6003.327466,0.00019178,2]
[396232097,1764850249487,-6003.327466,0.00019178,2]
[396232098,1764850249496,-151.0,0.00019178,2]
[396232099,1764850249506,-151.0,0.00019178,2]
[396232100,1764850249515,-6003.327466,0.00019178,2]
[396232101,1764850249524,-6003.327466,0.00019178,2]
[396232102,1764850249533,-151.0,0.00019178,2]
[396232103,1764850249543,-151.0,0.00019178,2]
[396232104,1764850249552,-6003.327466,0.00019178,2]
[396232105,1764850249562,-6003.327466,0.00019178,2]
[396232106,1764850249571,-151.833583,0.00019178,2]
[396232107,1764850249580,-151.850533,0.00019178,2]
[396232108,1764850249590,-151.0,0.00019178,2]
[396232109,1764850249600,-151.0,0.00019178,2]
[396232110,1764850249610,-156.641051,0.00019178,2]
[396232111,1764850249620,-151.0,0.00019178,2]
[396232112,1764850249629,-151.0,0.00019178,2]
[396232113,1764850249638,-153.72611,0.00019178,2]
[396232114,1764850249648,-151.0,0.00019178,2]
[396232115,1764850249657,-151.0,0.00019178,2]
[396232116,1764850249667,-151.0,0.00019178,2]
[396232117,1764850249676,-151.0,0.00019178,2]
[396232118,1764850249686,-151.0,0.00019178,2]
[396232119,1764850249695,-151.0,0.00019178,2]
[396232120,1764850249704,-153.211734,0.00019178,2]
[396232121,1764850249714,-151.0,0.00019178,2]
[396232122,1764850249727,-151.0,0.00019178,2]
[396232123,1764850249736,-151.0,0.00019178,2]
[396232124,1764850249746,-291.557332,0.00019178,2]
[396232125,1764850249755,-291.557332,0.00019178,2]
[396232126,1764850249766,-291.557332,0.00019178,2]
[396232127,1764850249777,-291.557332,0.00019178,2]
[396232128,1764850249787,-291.557332,0.00019178,2]
[396232129,1764850249799,-291.557332,0.00019178,2]
[396232130,1764850249808,-151.0,0.00019178,2]
[396232131,1764850249819,-151.0,0.00019178,2]
[396232132,1764850249828,-291.557332,0.00019178,2]
[396232133,1764850249837,-291.557332,0.00019178,2]
[396232134,1764850249847,-154.096012,0.00019178,2]
[396232135,1764850249856,-151.0,0.00019178,2]
[396232136,1764850249865,-151.0,0.00019178,2]
[396232137,1764850249875,-219.851774,0.00019178,2]
[396232138,1764850249885,-151.894211,0.00019178,2]
[396232140,1764850249894,-151.0,0.00019178,2]
[396232141,1764850249903,-151.0,0.00019178,2]
[396232142,1764850249913,-286.130692,0.00019178,2]
[396232143,1764850249922,-152.811684,0.00019178,2]
[396232144,1764850249931,-151.60176,0.00019178,2]
[396232145,1764850249940,-151.0,0.00019178,2]
[396232146,1764850249949,-153.874817,0.00019178,2]
[396232147,1764850249959,-151.0,0.00019178,2]
[396232148,1764850249968,-151.0,0.00019178,2]
[396232149,1764850249979,-385.286627,0.00019178,2]
[396232150,1764850249988,-385.286627,0.00019178,2]
[396232151,1764850249996,-385.286627,0.00019178,2]
[396232152,1764850250004,-385.286627,0.00019178,2]
[396232153,1764850250014,-151.0,0.00019178,2]
[396232154,1764850250023,-167.56,0.00019179,2]
[396232155,1764850250032,-314.63246682,0.00019182,2]
[396232156,1764850250041,-501.0,0.00019182,2]
[396232157,1764850250051,-1773.0,0.00019182,2]
[396232158,1764850250060,-2726.0,0.00019199,2]
[396232159,1764850250069,-250.0,0.000192,2]
[396232160,1764850250079,-250.0,0.000192,2]
[396232161,1764850250088,-250.0,0.000192,2]
[396232162,1764850250098,-250.0,0.000192,2]
[396232163,1764850250107,-250.0,0.000192,2]
[396232164,1764850250116,-250.0,0.000192,2]
[396232165,1764850250125,-250.0,0.000192,2]